[Event "Titled Tuesday Blitz May 2 Late 2023"]
[White "Janaszak, Dawid"]
[Black "Shubenkova, Veronika"]
[WhiteFideId "1119206"]
[BlackFideId "44124040"]
[WhiteElo "2220"]
[BlackElo "2027"]
[Result "1-0"]
[Round "10"]
[TimeControl "180+2"]
[Date "2023.05.02"]
[WhiteClock "0:00:10"]
[BlackClock "0:00:02"]

1. e4 {[%clk 0:03:00]}  c6 {[%clk 0:02:58]} 2. d4 {[%clk 0:03:00]}  d5 {[%clk 0:02:59]} 3. exd5 {[%clk 0:03:01]}  cxd5 {[%clk 0:02:59]} 4. Bd3 {[%clk 0:03:02]}  Nc6 {[%clk 0:02:59]} 5. c3 {[%clk 0:03:02]}  Nf6 {[%clk 0:03:00]} 6. Bf4 {[%clk 0:03:02]}  e6 {[%clk 0:03:00]} 7. Nf3 {[%clk 0:03:00]}  Bd6 {[%clk 0:03:00]} 8. Bg3 {[%clk 0:02:48]}  a6 {[%clk 0:02:59]} 9. Qe2 {[%clk 0:02:48]}  O-O {[%clk 0:02:58]} 10. Nbd2 {[%clk 0:02:48]}  b5 {[%clk 0:02:58]} 11. Ne5 {[%clk 0:02:48]}  Qc7 {[%clk 0:02:57]} 12. Ndf3 {[%clk 0:02:45]}  Bb7 {[%clk 0:02:56]} 13. h4 {[%clk 0:02:40]}  Na5 {[%clk 0:02:50]} 14. h5 {[%clk 0:02:39]}  Ne4 {[%clk 0:02:50]} 15. h6 {[%clk 0:02:33]}  g6 {[%clk 0:02:48]} 16. Bxe4 {[%clk 0:02:12]}  dxe4 {[%clk 0:02:47]} 17. Ng5 {[%clk 0:02:11]}  Bxe5 {[%clk 0:02:37]} 18. Bxe5 {[%clk 0:02:08]}  Qc4 {[%clk 0:02:31]} 19. Bf6 {[%clk 0:01:38]}  Qxe2+ {[%clk 0:02:25]} 20. Kxe2 {[%clk 0:01:37]}  Rfc8 {[%clk 0:02:14]} 21. Rh4 {[%clk 0:01:30]}  Nc4 {[%clk 0:02:13]} 22. Rb1 {[%clk 0:01:22]}  Nd6 {[%clk 0:02:12]} 23. Be5 {[%clk 0:01:19]}  Nf5 {[%clk 0:02:12]} 24. Rf4 {[%clk 0:01:15]}  b4 {[%clk 0:01:15]} 25. g4 {[%clk 0:01:14]}  Nxh6 {[%clk 0:01:09]} 26. Rh1 {[%clk 0:01:13]}  f6 {[%clk 0:00:59]} 27. Rxf6 {[%clk 0:01:03]}  bxc3 {[%clk 0:00:29]} 28. Rxh6 {[%clk 0:00:41]}  cxb2 {[%clk 0:00:24]} 29. Rxh7 {[%clk 0:00:33]}  Rc2+ {[%clk 0:00:22]} 30. Ke3 {[%clk 0:00:28]}  Rc3+ {[%clk 0:00:20]} 31. Kf4 {[%clk 0:00:28]}  Rf3+ {[%clk 0:00:18]} 32. Nxf3 {[%clk 0:00:28]}  Kxh7 {[%clk 0:00:17]} 33. Rf7+ {[%clk 0:00:21]}  Kg8 {[%clk 0:00:17]} 34. Rxb7 {[%clk 0:00:20]}  exf3 {[%clk 0:00:16]} 35. g5 {[%clk 0:00:15]}  Rf8+ {[%clk 0:00:16]} 36. Bf6 {[%clk 0:00:15]}  Rc8 {[%clk 0:00:15]} 37. Rxb2 {[%clk 0:00:15]}  Rc3 {[%clk 0:00:14]} 38. Ke5 {[%clk 0:00:13]}  Kf7 {[%clk 0:00:14]} 39. Rb7+ {[%clk 0:00:13]}  Ke8 {[%clk 0:00:11]} 40. Kxe6 {[%clk 0:00:14]}  Rc6+ {[%clk 0:00:10]} 41. Ke5 {[%clk 0:00:13]}  Rc2 {[%clk 0:00:11]} 42. Kd6 {[%clk 0:00:11]}  Rxf2 {[%clk 0:00:06]} 43. Ke6 {[%clk 0:00:10]}  Re2+ {[%clk 0:00:06]} 44. Be5 {[%clk 0:00:11]}  Rxe5+ {[%clk 0:00:02]} 45. dxe5 {[%clk 0:00:10]}  f2 {[%clk 0:00:02]} 46. Rb8# {[%clk 0:00:10]} 1-0


[Site "https://www.chess.com"]

[Event "Titled Tuesday Blitz May 2 Late 2023"]
[White "Haydon, David L"]
[Black "Bryant, Todd"]
[WhiteFideId "415405"]
[BlackFideId "2031299"]
[WhiteElo "2326"]
[BlackElo "2075"]
[Result "1-0"]
[Round "10"]
[TimeControl "180+2"]
[Date "2023.05.02"]
[WhiteClock "0:01:23"]
[BlackClock "0:00:09"]

1. e4 {[%clk 0:03:00]}  c5 {[%clk 0:03:00]} 2. Nf3 {[%clk 0:02:58]}  d6 {[%clk 0:03:00]} 3. d4 {[%clk 0:02:57]}  cxd4 {[%clk 0:03:01]} 4. Nxd4 {[%clk 0:02:57]}  Nf6 {[%clk 0:03:01]} 5. Nc3 {[%clk 0:02:57]}  g6 {[%clk 0:03:02]} 6. g3 {[%clk 0:02:57]}  Nc6 {[%clk 0:03:01]} 7. Bg2 {[%clk 0:02:57]}  Nxd4 {[%clk 0:03:01]} 8. Qxd4 {[%clk 0:02:56]}  Bg7 {[%clk 0:03:02]} 9. h3 {[%clk 0:02:56]}  O-O {[%clk 0:03:02]} 10. O-O {[%clk 0:02:55]}  Be6 {[%clk 0:02:55]} 11. Be3 {[%clk 0:02:53]}  Ng4 {[%clk 0:02:53]} 12. Qd2 {[%clk 0:02:50]}  Nxe3 {[%clk 0:02:52]} 13. Qxe3 {[%clk 0:02:50]}  Qc8 {[%clk 0:02:22]} 14. Kh2 {[%clk 0:02:46]}  Bxc3 {[%clk 0:02:22]} 15. bxc3 {[%clk 0:02:46]}  a6 {[%clk 0:02:13]} 16. f4 {[%clk 0:02:45]}  Qc4 {[%clk 0:02:03]} 17. f5 {[%clk 0:02:41]}  Bd7 {[%clk 0:01:53]} 18. h4 {[%clk 0:02:31]}  Rac8 {[%clk 0:01:49]} 19. Rf3 {[%clk 0:02:23]}  Bb5 {[%clk 0:01:34]} 20. h5 {[%clk 0:02:17]}  Qc5 {[%clk 0:01:16]} 21. Qh6 {[%clk 0:02:12]}  Qe5 {[%clk 0:00:33]} 22. a4 {[%clk 0:02:02]}  Bc4 {[%clk 0:00:26]} 23. hxg6 {[%clk 0:01:47]}  fxg6 {[%clk 0:00:27]} 24. fxg6 {[%clk 0:01:46]}  hxg6 {[%clk 0:00:26]} 25. Qxg6+ {[%clk 0:01:46]}  Qg7 {[%clk 0:00:26]} 26. Qxg7+ {[%clk 0:01:44]}  Kxg7 {[%clk 0:00:27]} 27. Rf4 {[%clk 0:01:43]}  e5 {[%clk 0:00:20]} 28. Rxf8 {[%clk 0:01:34]}  Rxf8 {[%clk 0:00:21]} 29. Rd1 {[%clk 0:01:34]}  Rf6 {[%clk 0:00:20]} 30. a5 {[%clk 0:01:33]}  Bb5 {[%clk 0:00:18]} 31. Kg1 {[%clk 0:01:32]}  Bc6 {[%clk 0:00:16]} 32. c4 {[%clk 0:01:29]}  Kg6 {[%clk 0:00:15]} 33. Rd3 {[%clk 0:01:29]}  Kg5 {[%clk 0:00:14]} 34. Rc3 {[%clk 0:01:28]}  Kg4 {[%clk 0:00:11]} 35. c5 {[%clk 0:01:27]}  dxc5 {[%clk 0:00:11]} 36. Rxc5 {[%clk 0:01:24]}  Kxg3 {[%clk 0:00:09]} 37. Rxe5 {[%clk 0:01:23]} 1-0


[Site "https://www.chess.com"]

[Event "Titled Tuesday Blitz May 2 Late 2023"]
[White "Kavutskiy, Konstantin"]
[Black "Onslow, Alfie"]
[WhiteFideId "2026384"]
[BlackFideId "436976"]
[WhiteElo "2323"]
[BlackElo "2114"]
[Result "1/2-1/2"]
[Round "10"]
[TimeControl "180+2"]
[Date "2023.05.02"]
[WhiteClock "0:00:10"]
[BlackClock "0:00:10"]

1. d4 {[%clk 0:03:00]}  d5 {[%clk 0:03:00]} 2. c4 {[%clk 0:03:00]}  e6 {[%clk 0:03:00]} 3. Nf3 {[%clk 0:02:59]}  c6 {[%clk 0:03:00]} 4. e3 {[%clk 0:02:54]}  f5 {[%clk 0:02:58]} 5. b3 {[%clk 0:02:53]}  Nf6 {[%clk 0:02:55]} 6. Bd3 {[%clk 0:02:53]}  Bd6 {[%clk 0:02:51]} 7. O-O {[%clk 0:02:52]}  Qe7 {[%clk 0:02:51]} 8. Bb2 {[%clk 0:02:49]}  O-O {[%clk 0:02:51]} 9. Nc3 {[%clk 0:02:43]}  Nbd7 {[%clk 0:02:51]} 10. Ne2 {[%clk 0:02:43]}  Ne4 {[%clk 0:02:51]} 11. Nf4 {[%clk 0:02:41]}  g5 {[%clk 0:02:41]} 12. Ne2 {[%clk 0:02:37]}  Qg7 {[%clk 0:02:27]} 13. g3 {[%clk 0:02:21]}  h5 {[%clk 0:02:18]} 14. h4 {[%clk 0:01:46]}  gxh4 {[%clk 0:02:15]} 15. Nxh4 {[%clk 0:01:45]}  Ndf6 {[%clk 0:02:01]} 16. Kg2 {[%clk 0:00:58]}  Ng4 {[%clk 0:01:58]} 17. Bxe4 {[%clk 0:00:56]}  fxe4 {[%clk 0:01:55]} 18. Nf4 {[%clk 0:00:55]}  Bxf4 {[%clk 0:01:51]} 19. exf4 {[%clk 0:00:55]}  Rxf4 {[%clk 0:01:43]} 20. Bc1 {[%clk 0:00:47]}  Nxf2 {[%clk 0:00:53]} 21. Rxf2 {[%clk 0:00:41]}  Rxh4 {[%clk 0:00:53]} 22. Bf4 {[%clk 0:00:36]}  Rg4 {[%clk 0:00:46]} 23. Be5 {[%clk 0:00:35]}  Qg5 {[%clk 0:00:32]} 24. Qf1 {[%clk 0:00:34]}  Bd7 {[%clk 0:00:31]} 25. Rf7 {[%clk 0:00:33]}  h4 {[%clk 0:00:22]} 26. Rxd7 {[%clk 0:00:21]}  Rf8 {[%clk 0:00:21]} 27. Qe1 {[%clk 0:00:13]}  Rf3 {[%clk 0:00:14]} 28. Rg7+ {[%clk 0:00:09]}  Qxg7 {[%clk 0:00:14]} 29. Bxg7 {[%clk 0:00:09]}  Rgxg3+ {[%clk 0:00:13]} 30. Kh2 {[%clk 0:00:09]}  Rh3+ {[%clk 0:00:13]} 31. Kg2 {[%clk 0:00:10]}  Rhg3+ {[%clk 0:00:13]} 32. Kh2 {[%clk 0:00:10]}  Rh3+ {[%clk 0:00:10]} 33. Kg2 {[%clk 0:00:10]}  Rhg3+ {[%clk 0:00:10]} 1/2-1/2


[Site "https://www.chess.com"]

[Event "Titled Tuesday Blitz May 2 Late 2023"]
[White "Nazaretyan, Tigran"]
[Black "Ansh M Shah"]
[WhiteFideId "24162345"]
[BlackFideId "25033379"]
[WhiteElo "2111"]
[BlackElo "2084"]
[Result "1-0"]
[Round "10"]
[TimeControl "180+2"]
[Date "2023.05.02"]
[WhiteClock "0:00:11"]
[BlackClock "0:00:13"]

1. d4 {[%clk 0:03:00]}  Nf6 {[%clk 0:02:59]} 2. c4 {[%clk 0:03:00]}  e6 {[%clk 0:02:59]} 3. Nf3 {[%clk 0:03:00]}  d5 {[%clk 0:03:00]} 4. Nc3 {[%clk 0:03:00]}  Bb4 {[%clk 0:03:00]} 5. Qa4+ {[%clk 0:02:59]}  Nc6 {[%clk 0:03:00]} 6. e3 {[%clk 0:02:58]}  O-O {[%clk 0:02:59]} 7. Bd2 {[%clk 0:02:58]}  a6 {[%clk 0:02:58]} 8. Rd1 {[%clk 0:02:54]}  dxc4 {[%clk 0:02:59]} 9. Bxc4 {[%clk 0:02:53]}  b5 {[%clk 0:02:59]} 10. Bxb5 {[%clk 0:02:53]}  axb5 {[%clk 0:02:58]} 11. Qxa8 {[%clk 0:02:51]}  Bxc3 {[%clk 0:02:57]} 12. Qxc6 {[%clk 0:02:45]}  Bxd2+ {[%clk 0:02:56]} 13. Rxd2 {[%clk 0:02:45]}  Bd7 {[%clk 0:02:55]} 14. Qc2 {[%clk 0:02:41]}  Qa8 {[%clk 0:02:52]} 15. a3 {[%clk 0:02:39]}  Bc6 {[%clk 0:02:45]} 16. Qd1 {[%clk 0:02:19]}  Ne4 {[%clk 0:02:38]} 17. Rc2 {[%clk 0:02:19]}  b4 {[%clk 0:02:33]} 18. axb4 {[%clk 0:02:00]}  Ba4 {[%clk 0:02:32]} 19. O-O {[%clk 0:01:58]}  Rb8 {[%clk 0:02:11]} 20. b5 {[%clk 0:01:41]}  Nd6 {[%clk 0:01:12]} 21. Qc1 {[%clk 0:01:26]}  Bxc2 {[%clk 0:01:11]} 22. Qxc2 {[%clk 0:01:27]}  Nxb5 {[%clk 0:01:11]} 23. Ng5 {[%clk 0:01:25]}  g6 {[%clk 0:01:11]} 24. h4 {[%clk 0:01:23]}  Qd5 {[%clk 0:01:08]} 25. Rc1 {[%clk 0:01:20]}  Rb7 {[%clk 0:01:01]} 26. Ne4 {[%clk 0:01:08]}  Kg7 {[%clk 0:00:51]} 27. Nc5 {[%clk 0:01:05]}  Ra7 {[%clk 0:00:44]} 28. b3 {[%clk 0:01:03]}  Nd6 {[%clk 0:00:43]} 29. g3 {[%clk 0:00:59]}  h5 {[%clk 0:00:40]} 30. Qb2 {[%clk 0:00:53]}  Kg8 {[%clk 0:00:30]} 31. Ra1 {[%clk 0:00:40]}  Rxa1+ {[%clk 0:00:25]} 32. Qxa1 {[%clk 0:00:39]}  Ne4 {[%clk 0:00:22]} 33. Nxe4 {[%clk 0:00:30]}  Qxe4 {[%clk 0:00:22]} 34. Qc1 {[%clk 0:00:28]}  Qd5 {[%clk 0:00:20]} 35. Qc4 {[%clk 0:00:27]}  Qb7 {[%clk 0:00:19]} 36. b4 {[%clk 0:00:27]}  Qb6 {[%clk 0:00:13]} 37. b5 {[%clk 0:00:27]}  Qb7 {[%clk 0:00:13]} 38. Qc6 {[%clk 0:00:18]}  Qxc6 {[%clk 0:00:13]} 39. bxc6 {[%clk 0:00:18]}  Kf8 {[%clk 0:00:13]} 40. Kg2 {[%clk 0:00:18]}  Ke7 {[%clk 0:00:13]} 41. g4 {[%clk 0:00:18]}  hxg4 {[%clk 0:00:13]} 42. Kg3 {[%clk 0:00:18]}  Kd6 {[%clk 0:00:14]} 43. Kxg4 {[%clk 0:00:17]}  f6 {[%clk 0:00:14]} 44. e4 {[%clk 0:00:17]}  e5 {[%clk 0:00:13]} 45. dxe5+ {[%clk 0:00:16]}  Kxe5 {[%clk 0:00:14]} 46. f3 {[%clk 0:00:16]}  Kd6 {[%clk 0:00:14]} 47. h5 {[%clk 0:00:14]}  gxh5+ {[%clk 0:00:14]} 48. Kxh5 {[%clk 0:00:13]}  Kxc6 {[%clk 0:00:14]} 49. Kg6 {[%clk 0:00:13]}  Kd6 {[%clk 0:00:13]} 50. Kxf6 {[%clk 0:00:13]}  c5 {[%clk 0:00:14]} 51. e5+ {[%clk 0:00:14]}  Kd5 {[%clk 0:00:11]} 52. e6 {[%clk 0:00:14]}  c4 {[%clk 0:00:12]} 53. e7 {[%clk 0:00:12]}  c3 {[%clk 0:00:12]} 54. e8=Q {[%clk 0:00:11]}  c2 {[%clk 0:00:13]} 55. Qe4+ {[%clk 0:00:11]} 1-0


[Site "https://www.chess.com"]

[Event "Titled Tuesday Blitz May 2 Late 2023"]
[White "Goltsev, Dmitry"]
[Black "Urbina Perez, Juan Antonio"]
[WhiteFideId "24176710"]
[BlackFideId "2217368"]
[WhiteElo "2336"]
[BlackElo "2197"]
[Result "1-0"]
[Round "10"]
[TimeControl "180+2"]
[Date "2023.05.02"]
[WhiteClock "0:00:56"]
[BlackClock "0:00:27"]

1. e4 {[%clk 0:03:00]}  e6 {[%clk 0:02:59]} 2. d4 {[%clk 0:03:00]}  d5 {[%clk 0:02:59]} 3. exd5 {[%clk 0:03:01]}  exd5 {[%clk 0:02:59]} 4. Nf3 {[%clk 0:03:02]}  Bd6 {[%clk 0:02:59]} 5. c4 {[%clk 0:03:03]}  Nf6 {[%clk 0:02:56]} 6. Nc3 {[%clk 0:03:02]}  O-O {[%clk 0:02:54]} 7. Be2 {[%clk 0:03:02]}  dxc4 {[%clk 0:02:54]} 8. Bxc4 {[%clk 0:03:03]}  Re8+ {[%clk 0:02:54]} 9. Be3 {[%clk 0:03:03]}  Nbd7 {[%clk 0:02:52]} 10. Ng5 {[%clk 0:02:57]}  Rf8 {[%clk 0:02:46]} 11. O-O {[%clk 0:02:55]}  Nb6 {[%clk 0:02:45]} 12. Bb3 {[%clk 0:02:55]}  h6 {[%clk 0:02:45]} 13. Nf3 {[%clk 0:02:54]}  Re8 {[%clk 0:02:45]} 14. Qd3 {[%clk 0:02:52]}  c6 {[%clk 0:02:45]} 15. Rfe1 {[%clk 0:02:50]}  Be6 {[%clk 0:02:40]} 16. Bc2 {[%clk 0:02:49]}  Qc7 {[%clk 0:02:31]} 17. Rac1 {[%clk 0:02:44]}  Nbd5 {[%clk 0:02:26]} 18. Ne5 {[%clk 0:02:43]}  Nxc3 {[%clk 0:02:20]} 19. bxc3 {[%clk 0:02:40]}  Rad8 {[%clk 0:02:20]} 20. Bf4 {[%clk 0:02:37]}  c5 {[%clk 0:02:14]} 21. Re3 {[%clk 0:02:36]}  c4 {[%clk 0:01:55]} 22. Qe2 {[%clk 0:02:30]}  Nd5 {[%clk 0:01:54]} 23. Rf3 {[%clk 0:02:22]}  Nxf4 {[%clk 0:01:52]} 24. Rxf4 {[%clk 0:02:23]}  Bxe5 {[%clk 0:01:50]} 25. dxe5 {[%clk 0:02:24]}  Rd5 {[%clk 0:01:48]} 26. Qe4 {[%clk 0:02:18]}  Qxe5 {[%clk 0:01:41]} 27. Qh7+ {[%clk 0:02:14]}  Kf8 {[%clk 0:01:40]} 28. Re4 {[%clk 0:01:55]}  Qg5 {[%clk 0:01:30]} 29. Rce1 {[%clk 0:01:50]}  Rd2 {[%clk 0:01:07]} 30. Ba4 {[%clk 0:01:37]}  Red8 {[%clk 0:01:03]} 31. h4 {[%clk 0:01:30]}  Qf6 {[%clk 0:00:53]} 32. Kh2 {[%clk 0:01:06]}  Qxf2 {[%clk 0:00:46]} 33. Qh8+ {[%clk 0:01:06]}  Ke7 {[%clk 0:00:44]} 34. Qxg7 {[%clk 0:01:07]}  Qf6 {[%clk 0:00:37]} 35. Rxe6+ {[%clk 0:01:05]}  Qxe6 {[%clk 0:00:35]} 36. Rxe6+ {[%clk 0:01:05]}  Kxe6 {[%clk 0:00:35]} 37. Qxh6+ {[%clk 0:01:05]}  f6 {[%clk 0:00:35]} 38. Qe3+ {[%clk 0:01:03]}  Kf7 {[%clk 0:00:34]} 39. Qxa7 {[%clk 0:01:03]}  Rg8 {[%clk 0:00:30]} 40. Qxb7+ {[%clk 0:01:00]}  Kf8 {[%clk 0:00:30]} 41. Bc6 {[%clk 0:00:59]}  Rxa2 {[%clk 0:00:29]} 42. Bd5 {[%clk 0:00:55]}  Rg7 {[%clk 0:00:27]} 43. Qc8+ {[%clk 0:00:55]}  Ke7 {[%clk 0:00:28]} 44. Qc7+ {[%clk 0:00:56]}  Ke8 {[%clk 0:00:27]} 45. Qxg7 {[%clk 0:00:56]} 1-0


[Site "https://www.chess.com"]

[Event "Titled Tuesday Blitz May 2 Late 2023"]
[White "Bjelobrk, Igor"]
[Black "Ladan, Nicholas"]
[WhiteFideId "4300726"]
[BlackFideId "30918855"]
[WhiteElo "2335"]
[BlackElo "2167"]
[Result "1/2-1/2"]
[Round "10"]
[TimeControl "180+2"]
[Date "2023.05.02"]
[WhiteClock "0:00:07"]
[BlackClock "0:00:04"]

1. d4 {[%clk 0:02:58]}  d5 {[%clk 0:03:00]} 2. c4 {[%clk 0:02:57]}  c6 {[%clk 0:02:59]} 3. Nf3 {[%clk 0:02:56]}  Nf6 {[%clk 0:02:59]} 4. Qc2 {[%clk 0:02:54]}  g6 {[%clk 0:02:53]} 5. cxd5 {[%clk 0:02:52]}  cxd5 {[%clk 0:02:53]} 6. Bf4 {[%clk 0:02:50]}  Nc6 {[%clk 0:02:52]} 7. e3 {[%clk 0:02:48]}  Qb6 {[%clk 0:02:46]} 8. Nc3 {[%clk 0:02:44]}  Bf5 {[%clk 0:02:43]} 9. Qb3 {[%clk 0:02:25]}  Nb4 {[%clk 0:02:31]} 10. Bb5+ {[%clk 0:02:22]}  Nc6 {[%clk 0:02:25]} 11. O-O {[%clk 0:02:11]}  Bg7 {[%clk 0:02:24]} 12. Nxd5 {[%clk 0:02:08]}  Nxd5 {[%clk 0:02:16]} 13. Qxd5 {[%clk 0:02:09]}  Be6 {[%clk 0:02:08]} 14. Qc5 {[%clk 0:01:31]}  Qxc5 {[%clk 0:02:07]} 15. dxc5 {[%clk 0:01:31]}  Bxb2 {[%clk 0:02:07]} 16. Rab1 {[%clk 0:01:31]}  Ba3 {[%clk 0:01:56]} 17. Ne5 {[%clk 0:00:39]}  O-O {[%clk 0:01:48]} 18. Bxc6 {[%clk 0:00:34]}  bxc6 {[%clk 0:01:48]} 19. Nxc6 {[%clk 0:00:34]}  Bxc5 {[%clk 0:01:47]} 20. Rfc1 {[%clk 0:00:34]}  Ba3 {[%clk 0:01:13]} 21. Rc3 {[%clk 0:00:34]}  Rfc8 {[%clk 0:01:14]} 22. h3 {[%clk 0:00:24]}  Bd5 {[%clk 0:00:56]} 23. Rxa3 {[%clk 0:00:19]}  Rxc6 {[%clk 0:00:56]} 24. Rb5 {[%clk 0:00:16]}  e6 {[%clk 0:00:32]} 25. Bh6 {[%clk 0:00:16]}  f6 {[%clk 0:00:27]} 26. Rba5 {[%clk 0:00:12]}  Rc7 {[%clk 0:00:26]} 27. f3 {[%clk 0:00:12]}  g5 {[%clk 0:00:23]} 28. h4 {[%clk 0:00:10]}  gxh4 {[%clk 0:00:20]} 29. Kh2 {[%clk 0:00:10]}  Kf7 {[%clk 0:00:20]} 30. Bf4 {[%clk 0:00:10]}  Rb7 {[%clk 0:00:18]} 31. e4 {[%clk 0:00:10]}  Bc4 {[%clk 0:00:16]} 32. Rc5 {[%clk 0:00:10]}  Bf1 {[%clk 0:00:10]} 33. Rac3 {[%clk 0:00:06]}  Rb2 {[%clk 0:00:09]} 34. Rc2 {[%clk 0:00:07]}  Rxc2 {[%clk 0:00:10]} 35. Rxc2 {[%clk 0:00:08]}  e5 {[%clk 0:00:09]} 36. Be3 {[%clk 0:00:07]}  a6 {[%clk 0:00:08]} 37. Kh3 {[%clk 0:00:08]}  Kg6 {[%clk 0:00:07]} 38. Kxh4 {[%clk 0:00:07]}  Rb8 {[%clk 0:00:07]} 39. g4 {[%clk 0:00:07]}  Rb1 {[%clk 0:00:07]} 40. Kg3 {[%clk 0:00:07]}  Bd3 {[%clk 0:00:06]} 41. Rc6 {[%clk 0:00:07]}  Bb5 {[%clk 0:00:06]} 42. Rd6 {[%clk 0:00:06]}  h6 {[%clk 0:00:04]} 43. Bb6 {[%clk 0:00:06]}  Rb2 {[%clk 0:00:02]} 44. Bd8 {[%clk 0:00:05]}  Bf1 {[%clk 0:00:02]} 45. Rxf6+ {[%clk 0:00:05]}  Kg7 {[%clk 0:00:03]} 46. Rf5 {[%clk 0:00:05]}  Rg2+ {[%clk 0:00:02]} 47. Kh4 {[%clk 0:00:06]}  Rh2+ {[%clk 0:00:03]} 48. Kg3 {[%clk 0:00:06]}  Rg2+ {[%clk 0:00:03]} 49. Kh4 {[%clk 0:00:07]}  Rh2+ {[%clk 0:00:04]} 50. Kg3 {[%clk 0:00:07]}  Rg2+ {[%clk 0:00:04]} 1/2-1/2


[Site "https://www.chess.com"]

[Event "Titled Tuesday Blitz May 2 Late 2023"]
[White "Yeritsyan, Hayk"]
[Black "Kalaiyalahan, Akshaya"]
[WhiteFideId "13307320"]
[BlackFideId "422894"]
[WhiteElo "2241"]
[BlackElo "2043"]
[Result "1-0"]
[Round "10"]
[TimeControl "180+2"]
[Date "2023.05.02"]
[WhiteClock "0:01:20"]
[BlackClock "0:00:45"]

1. d4 {[%clk 0:02:48]}  b6 {[%clk 0:02:40]} 2. Nf3 {[%clk 0:02:46]}  Bb7 {[%clk 0:02:40]} 3. Bf4 {[%clk 0:02:47]}  Nf6 {[%clk 0:02:37]} 4. e3 {[%clk 0:02:47]}  e6 {[%clk 0:02:37]} 5. Nbd2 {[%clk 0:02:47]}  d5 {[%clk 0:02:34]} 6. Bd3 {[%clk 0:02:46]}  Nbd7 {[%clk 0:02:34]} 7. c3 {[%clk 0:02:45]}  c5 {[%clk 0:02:34]} 8. O-O {[%clk 0:02:45]}  Ne4 {[%clk 0:02:34]} 9. Ne5 {[%clk 0:02:44]}  Ndf6 {[%clk 0:02:33]} 10. Bb5+ {[%clk 0:02:34]}  Ke7 {[%clk 0:02:27]} 11. Nc6+ {[%clk 0:02:30]}  Bxc6 {[%clk 0:02:27]} 12. Bxc6 {[%clk 0:02:31]}  Rc8 {[%clk 0:02:17]} 13. Bb7 {[%clk 0:02:28]}  Rc7 {[%clk 0:02:14]} 14. Bxc7 {[%clk 0:02:27]}  Qxc7 {[%clk 0:02:14]} 15. Ba6 {[%clk 0:02:27]}  c4 {[%clk 0:02:06]} 16. Bb5 {[%clk 0:02:27]}  Ng4 {[%clk 0:02:03]} 17. Qxg4 {[%clk 0:02:09]}  Nxd2 {[%clk 0:02:03]} 18. Rfe1 {[%clk 0:02:04]}  f5 {[%clk 0:01:58]} 19. Qe2 {[%clk 0:02:02]}  Ne4 {[%clk 0:01:57]} 20. Ba4 {[%clk 0:02:02]}  Kf7 {[%clk 0:01:54]} 21. Bc2 {[%clk 0:02:02]}  Bd6 {[%clk 0:01:53]} 22. g3 {[%clk 0:02:00]}  h6 {[%clk 0:01:47]} 23. Bxe4 {[%clk 0:01:59]}  fxe4 {[%clk 0:01:38]} 24. f3 {[%clk 0:02:00]}  Rf8 {[%clk 0:01:02]} 25. fxe4 {[%clk 0:01:57]}  dxe4 {[%clk 0:00:55]} 26. Rf1+ {[%clk 0:01:57]}  Kg8 {[%clk 0:00:53]} 27. Rxf8+ {[%clk 0:01:56]}  Bxf8 {[%clk 0:00:53]} 28. Qg4 {[%clk 0:01:55]}  Qc6 {[%clk 0:00:52]} 29. Rf1 {[%clk 0:01:52]}  Qd5 {[%clk 0:00:50]} 30. Qg6 {[%clk 0:01:45]}  Bd6 {[%clk 0:00:46]} 31. Rf7 {[%clk 0:01:30]}  Bf8 {[%clk 0:00:46]} 32. Rxa7 {[%clk 0:01:21]}  Qb5 {[%clk 0:00:45]} 33. Qf7+ {[%clk 0:01:20]} 1-0


[Site "https://www.chess.com"]

[Event "Titled Tuesday Blitz May 2 Late 2023"]
[White "D`Arruda, Ricardo D."]
[Black "Jovic, Stanoje"]
[WhiteFideId "100692"]
[BlackFideId "905020"]
[WhiteElo "2271"]
[BlackElo "2236"]
[Result "1-0"]
[Round "10"]
[TimeControl "180+2"]
[Date "2023.05.02"]
[WhiteClock "0:00:39"]
[BlackClock "0:00:03"]

1. g3 {[%clk 0:02:33]}  d5 {[%clk 0:02:59]} 2. Bg2 {[%clk 0:02:34]}  c5 {[%clk 0:02:59]} 3. d3 {[%clk 0:02:34]}  Nc6 {[%clk 0:02:58]} 4. Nf3 {[%clk 0:02:33]}  e5 {[%clk 0:02:58]} 5. O-O {[%clk 0:02:33]}  Nf6 {[%clk 0:02:55]} 6. e4 {[%clk 0:02:32]}  d4 {[%clk 0:02:50]} 7. Nh4 {[%clk 0:02:32]}  Be7 {[%clk 0:02:40]} 8. Nd2 {[%clk 0:02:29]}  O-O {[%clk 0:02:38]} 9. Nf5 {[%clk 0:02:29]}  b5 {[%clk 0:02:33]} 10. a4 {[%clk 0:02:28]}  b4 {[%clk 0:02:17]} 11. Nc4 {[%clk 0:02:23]}  Re8 {[%clk 0:02:06]} 12. Bg5 {[%clk 0:02:22]}  h6 {[%clk 0:01:57]} 13. Bd2 {[%clk 0:02:21]}  Bf8 {[%clk 0:01:52]} 14. g4 {[%clk 0:02:15]}  Na5 {[%clk 0:01:46]} 15. Nxa5 {[%clk 0:02:10]}  Qxa5 {[%clk 0:01:46]} 16. Qf3 {[%clk 0:02:10]}  Qa6 {[%clk 0:01:37]} 17. h4 {[%clk 0:02:07]}  c4 {[%clk 0:01:27]} 18. dxc4 {[%clk 0:02:05]}  Bxf5 {[%clk 0:01:21]} 19. Qxf5 {[%clk 0:01:50]}  Qxc4 {[%clk 0:01:16]} 20. Rfc1 {[%clk 0:01:42]}  Qe2 {[%clk 0:01:13]} 21. Bxh6 {[%clk 0:01:37]}  Qxg4 {[%clk 0:01:13]} 22. Qxg4 {[%clk 0:01:34]}  Nxg4 {[%clk 0:01:13]} 23. Bd2 {[%clk 0:01:35]}  a5 {[%clk 0:01:10]} 24. Bf1 {[%clk 0:01:31]}  Nf6 {[%clk 0:01:07]} 25. f3 {[%clk 0:01:30]}  Nh5 {[%clk 0:01:06]} 26. Bc4 {[%clk 0:01:29]}  Be7 {[%clk 0:01:06]} 27. Be1 {[%clk 0:01:27]}  Nf4 {[%clk 0:01:04]} 28. Kh2 {[%clk 0:01:25]}  Rec8 {[%clk 0:01:00]} 29. b3 {[%clk 0:01:25]}  Rc6 {[%clk 0:00:56]} 30. Bg3 {[%clk 0:01:19]}  Rh6 {[%clk 0:00:52]} 31. Bxf4 {[%clk 0:01:18]}  Rxh4+ {[%clk 0:00:50]} 32. Kg2 {[%clk 0:01:18]}  exf4 {[%clk 0:00:45]} 33. Rh1 {[%clk 0:01:17]}  g5 {[%clk 0:00:44]} 34. Rxh4 {[%clk 0:01:13]}  gxh4 {[%clk 0:00:43]} 35. Kh3 {[%clk 0:01:14]}  Rc8 {[%clk 0:00:29]} 36. Rg1+ {[%clk 0:01:10]}  Kf8 {[%clk 0:00:29]} 37. Rg4 {[%clk 0:01:10]}  Bd6 {[%clk 0:00:15]} 38. Rxh4 {[%clk 0:01:10]}  Rc5 {[%clk 0:00:15]} 39. Rh7 {[%clk 0:01:06]}  Rg5 {[%clk 0:00:15]} 40. Rxf7+ {[%clk 0:01:04]}  Ke8 {[%clk 0:00:16]} 41. Rf6 {[%clk 0:00:57]}  Ke7 {[%clk 0:00:13]} 42. Rf5 {[%clk 0:00:52]}  Rg3+ {[%clk 0:00:13]} 43. Kh4 {[%clk 0:00:52]}  Rxf3 {[%clk 0:00:13]} 44. e5 {[%clk 0:00:52]}  Bc5 {[%clk 0:00:11]} 45. Rf7+ {[%clk 0:00:52]}  Ke8 {[%clk 0:00:12]} 46. Rc7 {[%clk 0:00:49]}  Rg3 {[%clk 0:00:10]} 47. Rxc5 {[%clk 0:00:47]}  Rg1 {[%clk 0:00:09]} 48. e6 {[%clk 0:00:43]}  f3 {[%clk 0:00:07]} 49. Rc7 {[%clk 0:00:44]}  Re1 {[%clk 0:00:05]} 50. Kg3 {[%clk 0:00:41]}  Re3 {[%clk 0:00:04]} 51. Kf2 {[%clk 0:00:39]}  Kd8 {[%clk 0:00:04]} 52. Rd7+ {[%clk 0:00:38]}  Ke8 {[%clk 0:00:03]} 53. Rxd4 {[%clk 0:00:39]} 1-0


[Site "https://www.chess.com"]